{"text_format":"3","workbook":"xlsx","n_sheets":1,"sheets":["Grāmatvedības bilance"],"not_rendered":{"defined_names":1},"read":"whole","date_system":"1900"}

{"sheet":"Grāmatvedības bilance","index":0,"n_rows":50,"n_cols":5,"rows_kept":50,"merged":[[0,0,0,4],[1,0,1,4],[2,0,2,4]]}
["Grāmatvedības bilance"]
["[Uzņēmuma nosaukums]"]
[{"$f":"NOW()","v":"2014-04-30T19:06:09.620"}]
[]
[{"$nulls":3},"2003. gads","2004. gads"]
["Aktīvi"]
["Pašreizējie aktīvi:"]
["Skaidra nauda"]
["Ieguldījumi"]
["Pamatlīdzekļi"]
["Saņemamie rēķini"]
["Apmaksāti izdevumi"]
["Citi"]
["Pašreizējie aktīvi kopā",null,null,{"$f":"SUM(D8:D13)","v":{"v":0,"d":"0.00 €"}},{"$f":"SUM(E8:E13)","v":{"v":0,"d":"0.00 €"}}]
[]
["Fiksētie aktīvi:"]
["Materiāli un aprīkojums"]
["Nomātā īpašuma vērtības palielinājums"]
["Pašu kapitāls un citi ieguldījumi"]
["Mazāki uzkrātie zaudējumi"]
["Fiksētie aktīvi kopā",null,null,{"$f":"SUM(D17:D20)","v":{"v":0,"d":"0.00 €"}},{"$f":"SUM(E17:E20)","v":{"v":0,"d":"0.00 €"}}]
[]
["Citi aktīvi:"]
["Firmas vērtība"]
["Citi aktīvi kopā",null,null,{"$f":"SUM(D24)","v":{"v":0,"d":"0.00 €"}},{"$f":"SUM(E24)","v":{"v":0,"d":"0.00 €"}}]
[]
["Aktīvi kopā",null,null,{"$f":"D25+D21+D14","v":{"v":0,"d":"0.00 €"}},{"$f":"E25+E21+E14","v":{"v":0,"d":"0.00 €"}}]
[]
["Pasīvi un akcionāru kapitāls"]
["Pašreizējie pasīvi:"]
["Maksājamie rēķini"]
["Uzkrātās algas"]
["Uzkrātās kompensācijas"]
["Maksājamais ienākumu nodoklis"]
["Negūtā peļņa"]
["Citi"]
["Pašreizējie pasīvi kopā",null,null,{"$f":"SUM(D31:D36)","v":{"v":0,"d":"0.00 €"}},{"$f":"SUM(E31:E36)","v":{"v":0,"d":"0.00 €"}}]
[]
["Ilgtermiņa pasīvi:"]
["Aizņēmumi no kredītiestādēm"]
["Ilgtermiņa pasīvi kopā",null,null,{"$f":"SUM(D40)","v":{"v":0,"d":"0.00 €"}},{"$f":"SUM(E40)","v":{"v":0,"d":"0.00 €"}}]
[]
["Akcionāru kapitāls:"]
["Ieguldītie līdzekļi"]
["Uzkrātā nesadalītā peļņa"]
["Akcionāru kapitāls kopā",null,null,{"$f":"SUM(D44:D45)","v":{"v":0,"d":"0.00 €"}},{"$f":"SUM(E44:E45)","v":{"v":0,"d":"0.00 €"}}]
[]
["Pasīvi un akcionāru kapitāls kopā",null,null,{"$f":"D46+D41+D37","v":{"v":0,"d":"0.00 €"}},{"$f":"E46+E41+E37","v":{"v":0,"d":"0.00 €"}}]
[{"$nulls":3},{"$f":"IF(D48>D27,\"Pasīvi augstāki\",IF(D27>D48,\"Aktīvi augstāki\",\"Bilancēts\"))","v":"Bilancēts"},{"$f":"IF(E48>E27,\"Pasīvi augstāki\",IF(E27>E48,\"Aktīvi augstāki\",\"Bilancēts\"))","v":"Bilancēts"}]
[null,null,"Starpība:",{"$f":"IF(D48>D27,D27-D48,IF(D27>D48,D48-D27,0))","v":{"v":0,"d":"0.00 €"}},{"$f":"IF(E48>E27,E27-E48,IF(E27>E48,E48-E27,0))","v":{"v":0,"d":"0.00 €"}}]